bitfinex-derivatives/quotes_SOLF0:USTF0_20260107
["timestamp","ask_amount","ask_price","bid_price","bid_amount"]
[1767800975325,3.71489608,136.04,135.93,13.48651551]
[1767800975516,3.71489608,136.04,135.94,86.94]
[1767800975716,3.71489608,136.04,135.94,93.79991551]
[1767800976417,6.6203,136.07,135.94,93.79991551]
[1767800976622,3.71489608,136.07,135.96,6.6251]
[1767800976825,3.71489608,136.07,135.96,93.5651]
[1767800978228,3.71489608,136.06,135.96,93.5651]
[1767800978621,3.71489608,136.09,135.97,6.6248]
[1767800979022,3.71489608,136.09,135.97,93.5448]
[1767800979528,6.6199,136.08,135.97,93.5448]
[1767800979728,3.71489608,136.07,135.97,93.5448]
[1767800980232,3.71489608,136.07,135.98,6.6243]
[1767800982327,3.71489608,136.05,135.97,86.92]
[1767800982532,3.71489608,136.05,135.96,6.625]
[1767800982533,3.71489608,136.05,135.96,86.92]
[1767800982927,10.33589608,136.05,135.96,86.92]
[1767800983128,3.71489608,136.04,135.93,103.0796]
[1767800983429,3.71489608,136.04,135.94,86.92]
[1767800984431,3.71489608,136.07,135.94,86.92]
[1767800985137,3.71489608,136.07,135.93,109.94121551]
[1767800985338,6.6215,136.04,135.95,86.92]
[1767800985927,3.71489608,136.05,135.95,86.92]
[1767800986136,3.71489608,136.05,135.94,6.85991551]
[1767800986332,3.71489608,136.05,135.96,86.92]
[1767800986639,6.6215,136.04,135.96,86.92]
[1767800987143,6.6215,136.04,135.96,93.77991551]
[1767800987335,3.71489608,136.05,135.96,93.77991551]
[1767800987742,106.68909608,136.08,135.96,93.77991551]
[1767800987939,3.71489608,136.07,135.96,6.85991551]
[1767800988139,3.71489608,136.07,135.97,86.92]
[1767800988552,6.621,136.05,135.97,86.92]
[1767800989132,6.621,136.05,135.97,93.77991551]
[1767800991247,3.71489608,136.07,135.97,93.77991551]
[1767800992250,3.71489608,136.07,135.98,13.48411551]
[1767800992454,7.31874118,136.12,135.99,6.85991551]
[1767800992455,3.71489608,136.12,135.99,6.85991551]
[1767800992749,3.71489608,136.12,136.01,6.83821326]
[1767800993150,3.71489608,136.12,136.02,86.92]
[1767800993741,3.71489608,136.12,136.02,93.75821326]
[1767800994141,6.6187,136.1,136.02,93.75821326]
[1767800994346,6.6187,136.1,136.02,86.92]
[1767800995048,10.33359608,136.1,136.01,6.83821326]
[1767800995241,10.33409608,136.09,136.01,86.9]
[1767800997158,6.6192,136.09,136.01,86.9]
[1767800997363,3.71489608,136.07,135.98,93.73821326]
[1767800997760,3.71489608,136.07,135.98,6.83821326]
[1767800998365,3.71489608,136.07,135.97,100.36291326]
[1767800998565,10.33509608,136.07,135.97,100.36291326]
[1767800998864,3.71489608,136.07,135.97,6.83821326]
[1767800999261,10.33549608,136.06,135.97,6.83821326]
[1767800999463,10.33549608,136.06,135.96,93.73821326]
[1767800999658,10.33549608,136.06,135.97,6.83821326]
[1767800999865,10.33599608,136.05,135.97,6.83821326]
[1767801000662,6.6216,136.04,135.96,93.73821326]
[1767801000961,3.94390356,136.04,135.93,93.73821326]
[1767801001162,10.56540356,136.04,135.93,93.73821326]
[1767801001471,102.9835,136.07,135.96,6.83821326]
[1767801001472,3.94390356,136.07,135.96,6.83821326]
[1767801001669,3.94390356,136.07,135.97,6.83821326]
[1767801002464,3.94390356,136.07,135.99,6.83821326]
[1767801002864,90.59291254,136.1,136.0,6.83821326]
[1767801003068,90.59291254,136.1,136.0,93.73821326]
[1767801003372,3.69291254,136.1,136.0,93.73821326]
[1767801003670,3.69291254,136.12,136.0,93.73821326]
[1767801003874,3.69291254,136.12,136.01,6.83821326]
[1767801004374,6.6186,136.1,136.02,6.83821326]
[1767801004673,6.6182,136.11,136.03,6.83821326]
[1767801005264,19.26109909,136.13,136.03,6.83821326]
[1767801005664,15.56818655,136.13,136.04,6.83821326]
[1767801005866,14.54222641,136.13,136.04,22.14]
[1767801006071,14.54222641,136.13,136.09,6.83712628]
[1767801006374,14.54222641,136.13,136.06,9.11658297]
[1767801006375,14.54222641,136.13,136.08,6.83712628]
[1767801007375,3.69291254,136.22,136.09,93.71712628]
[1767801007570,3.69291254,136.22,136.09,100.33602628]
[1767801007772,3.69291254,136.22,136.09,93.71712628]
[1767801008269,3.69291254,136.21,136.1,93.4982]
[1767801008477,3.69291254,136.21,136.09,6.83712628]
[1767801008478,3.69291254,136.21,136.09,86.88]
[1767801008863,3.69291254,136.19,136.06,13.45742628]
[1767801009069,3.69291254,136.19,136.06,6.83712628]
[1767801009265,3.69291254,136.19,136.07,86.88]
[1767801010574,10.30781254,136.18,136.07,86.88]
[1767801010975,3.69291254,136.17,136.06,93.4804]
[1767801012178,3.69291254,136.17,136.07,6.6199]
[1767801013876,3.69291254,136.17,136.06,6.83712628]
[1767801014175,3.69291254,136.14,136.03,6.83712628]
[1767801014478,3.69291254,136.14,136.02,6.83712628]
[1767801014678,3.69291254,136.14,136.04,6.6213]
[1767801014881,86.86,136.16,136.04,103.0005]
[1767801015076,86.86,136.16,136.04,109.83762628]
[1767801015077,90.55291254,136.16,136.04,109.83762628]
[1767801015381,3.69291254,136.15,136.04,93.69712628]
[1767801015581,3.69291254,136.15,136.04,86.86]
[1767801016182,3.69291254,136.14,136.04,86.86]
[1767801016582,3.69291254,136.12,136.04,86.86]
[1767801016981,3.69291254,136.12,136.01,6.83712628]
[1767801017185,3.69291254,136.11,136.01,6.83712628]
[1767801017388,3.69291254,136.11,136.0,93.68397443]
[1767801017573,3.69291254,136.11,136.0,86.86]
[1767801017887,3.69291254,136.11,136.0,93.68397443]
[1767801018181,3.69291254,136.13,136.0,93.68397443]
[1767801018384,3.69291254,136.11,136.0,93.68397443]
[1767801018778,3.69291254,136.11,136.01,6.82397443]
[1767801019583,10.31111254,136.11,136.02,6.6223]
[1767801019781,10.31111254,136.11,136.01,6.82397443]
[1767801021279,10.31111254,136.11,136.02,6.82397443]
[1767801021486,10.31111254,136.11,136.01,6.82397443]
[1767801021680,10.31111254,136.11,136.02,6.82397443]
[1767801022186,10.31111254,136.11,136.01,13.44677443]
[1767801022385,10.31111254,136.11,136.02,6.82397443]
[1767801022778,10.31111254,136.11,136.01,6.82397443]
[1767801023278,10.31171254,136.1,136.01,6.82397443]
[1767801023587,10.31171254,136.1,136.0,6.82397443]
[1767801023588,3.69291254,136.09,136.0,6.82397443]
[1767801023787,3.69291254,136.08,136.0,6.82397443]
[1767801023992,3.69291254,136.08,135.99,86.86]
[1767801023993,3.69291254,136.08,135.99,6.82397443]
[1767801024291,3.69291254,136.08,135.97,6.82397443]
[1767801024587,3.69291254,136.08,135.98,6.82397443]
[1767801025090,3.69291254,136.08,135.97,6.82397443]
[1767801025291,10.31301254,136.07,135.97,6.82397443]
[1767801025587,3.69291254,136.06,135.97,6.82397443]
[1767801027097,3.69291254,136.06,135.97,13.44877443]
[1767801027598,3.69291254,136.06,135.97,6.82397443]
[1767801028098,3.69291254,136.05,135.97,6.82397443]
[1767801028299,3.69291254,136.05,135.96,6.82397443]
[1767801028499,1.76400507,136.03,135.96,6.82397443]
[1767801028799,12.07851761,136.04,135.96,6.82397443]
[1767801031103,3.69291254,136.03,135.96,6.82397443]
[1767801032799,98.92476074,136.06,135.96,6.82397443]
[1767801034201,12.02476074,136.06,135.96,6.82397443]
[1767801034496,10.26075567,136.06,135.96,6.82397443]
[1767801034702,10.26075567,136.06,135.97,6.6248]
[1767801035503,3.64005567,136.06,135.97,6.6248]
[1767801036004,3.64005567,136.06,135.97,8.38880507]
[1767801036202,3.64005567,136.06,135.97,8.5879795]
[1767801036404,3.64005567,136.06,135.98,6.6243]
[1767801036607,3.64005567,136.06,135.97,8.5879795]
[1767801036799,3.64005567,136.06,135.98,6.82397443]
[1767801037200,3.64005567,136.07,135.99,1.76400507]
[1767801038710,3.64005567,136.07,135.99,6.6239]
[1767801039312,3.64005567,136.09,135.99,1.76400507]
[1767801039506,3.64005567,136.09,136.01,1.76400507]
[1767801039906,3.64005567,136.09,136.02,6.6223]
[1767801040107,3.64005567,136.09,136.01,1.76400507]
[1767801040812,86.9,136.12,136.04,6.6215]
[1767801040813,3.64005567,136.12,136.04,6.6215]
[1767801041716,3.64005567,136.12,136.05,6.621]
[1767801042013,3.64005567,136.12,136.03,1.76400507]
[1767801042512,3.64005567,136.12,136.02,109.84332395]
[1767801042908,3.64005567,136.12,136.02,6.83202395]
[1767801043109,3.64005567,136.12,136.01,6.83202395]
[1767801043309,3.64005567,136.12,136.0,93.73202395]
[1767801043519,3.64005567,136.08,135.98,6.83202395]
[1767801043814,3.64005567,136.08,135.97,6.83202395]
[1767801044002,3.64005567,136.08,135.96,86.88]
[1767801044003,10.26055567,136.06,135.98,6.6243]
[1767801044408,3.64005567,136.05,135.98,6.6243]
[1767801044715,3.64005567,136.05,135.96,6.83202395]
[1767801044904,3.64005567,136.04,135.95,6.83202395]
[1767801045815,3.64005567,136.04,135.95,13.45772395]
[1767801046116,3.64005567,136.04,135.95,6.83202395]
[1767801047515,10.26155567,136.04,135.95,6.83202395]
[1767801049211,3.64005567,136.04,135.95,6.83202395]
[1767801049912,3.64005567,136.04,135.96,6.6253]
[1767801050309,10.26165567,136.04,135.95,6.83202395]
[1767801051317,10.26165567,136.04,135.96,6.83202395]
[1767801052712,3.64005567,136.04,135.96,6.83202395]
[1767801053315,3.64005567,136.04,135.97,6.83202395]
[1767801054211,3.64005567,136.04,135.98,6.83202395]
[1767801057422,3.64005567,136.06,135.98,13.45632395]
[1767801058115,3.64005567,136.08,136.0,6.83202395]
[1767801058318,3.64005567,136.08,136.01,6.83202395]
[1767801059018,3.64005567,136.06,135.99,6.83202395]
[1767801059923,10.26105567,136.05,135.99,6.83202395]
[1767801061323,10.26105567,136.05,136.0,6.83202395]
[1767801061822,3.97687254,136.02,135.91,13.67487445]
[1767801062024,3.97687254,136.01,135.91,13.67487445]
[1767801062522,3.97687254,136.01,135.9,116.77937445]
[1767801063122,3.97687254,136.01,135.93,6.6267]
[1767801063322,3.97687254,136.01,135.9,13.67487445]
[1767801063823,3.97687254,136.01,135.9,107.20277445]
[1767801064020,3.97687254,136.01,135.9,100.57487445]
[1767801064221,3.97687254,136.01,135.9,86.9]
[1767801064415,3.97687254,135.99,135.9,86.9]
[1767801065425,103.0051,136.04,135.9,86.9]
[1767801065426,5.74185816,136.05,135.95,1.76498562]
[1767801065725,6.6208,136.06,135.97,1.76498562]
[1767801065923,5.74185816,136.1,135.99,1.76498562]
[1767801066327,3.97687254,136.09,135.99,1.76498562]
[1767801067226,3.97687254,136.11,136.01,1.76498562]
[1767801067727,3.97687254,136.11,136.02,6.6221]
[1767801069327,3.97687254,136.11,136.01,103.0232]
[1767801069630,3.97687254,136.14,136.03,103.0085]
[1767801069830,3.97687254,136.14,136.03,189.9085]
[1767801070023,3.97687254,136.14,136.05,6.6209]
[1767801070219,3.97687254,136.14,136.05,102.9936]
[1767801070431,3.97687254,136.2,136.05,102.9936]
[1767801070628,3.97687254,136.18,136.06,86.9]
[1767801071633,3.97687254,136.18,136.08,6.6194]
[1767801071834,3.97687254,136.18,136.06,86.9]
[1767801072327,3.97687254,136.17,136.08,6.6193]
[1767801072524,3.97687254,136.17,136.07,102.9744]
[1767801073624,3.97687254,136.17,136.09,6.6188]
[1767801074027,3.97687254,136.17,136.06,189.8829]
[1767801074836,3.97687254,136.17,136.09,6.6189]
[1767801075231,3.97687254,136.17,136.06,86.88]
[1767801075632,3.97687254,136.17,136.04,102.9984]
[1767801075929,3.97687254,136.17,136.04,189.8784]
[1767801076632,3.97687254,136.17,136.06,102.9856]
[1767801077338,3.97687254,136.17,136.08,6.6193]
[1767801078038,3.97687254,136.16,136.03,189.8622]
[1767801078236,3.97687254,136.15,136.06,102.9855]
[1767801079636,3.97687254,136.15,136.08,6.6193]
[1767801080742,3.97687254,136.15,136.06,6.6202]
[1767801081041,3.97687254,136.15,136.05,86.86]
[1767801081237,3.97687254,136.15,136.08,6.6191]
[1767801081533,3.97687254,136.15,136.05,86.86]
[1767801082937,3.97687254,136.15,136.05,93.4808]
[1767801083139,3.97687254,136.15,136.05,86.86]
[1767801083339,3.97687254,136.17,136.05,86.86]
[1767801083642,3.97687254,136.17,136.08,6.6192]
[1767801084142,3.97687254,136.17,136.09,6.6189]
[1767801084338,3.97687254,136.17,136.06,189.8462]
[1767801084339,3.97687254,136.17,136.07,102.9746]
[1767801084545,3.97687254,136.17,136.07,189.8346]
[1767801084744,3.97687254,136.17,136.07,86.86]
[1767801085445,3.97687254,136.2,136.11,6.618]
[1767801085645,3.97687254,136.2,136.07,189.8352]
[1767801085646,3.97687254,136.2,136.1,102.9548]
[1767801086147,3.97687254,136.2,136.1,189.8148]
[1767801086354,3.97687254,136.2,136.12,6.6175]
[1767801087042,3.97687254,136.2,136.1,93.4783]
[1767801087242,3.97687254,136.2,136.1,86.86]
[1767801088148,3.97687254,136.2,136.11,6.618]
[1767801089140,3.97687254,136.2,136.12,6.6173]
[1767801090551,3.97687254,136.19,136.12,6.6173]
[1767801090742,3.97687254,136.17,136.1,6.6181]
[1767801091254,177.0,136.26,136.13,102.927]
[1767801091548,177.0,136.26,136.14,102.9244]
[1767801091549,3.97687254,136.24,136.14,102.9244]
[1767801091751,3.97687254,136.24,136.15,102.9168]
[1767801092143,3.97687254,136.24,136.17,6.6151]
[1767801092651,3.97687254,136.24,136.14,102.9244]
[1767801092848,3.97687254,136.24,136.16,6.6155]
[1767801093244,3.97687254,136.24,136.14,6.6163]
[1767801093443,3.71746389,136.23,136.14,6.6163]
[1767801093946,10.32976389,136.23,136.14,6.6163]
[1767801094155,3.71746389,136.22,136.13,86.84]
[1767801094751,3.71746389,136.21,136.13,93.457]
[1767801095349,3.71746389,136.21,136.13,6.617]
[1767801096049,3.71746389,136.2,136.11,6.6177]
[1767801097053,10.33126389,136.2,136.11,6.6177]
[1767801097246,3.71746389,136.19,136.08,6.6192]
[1767801097449,3.71746389,136.19,136.08,93.4392]
[1767801098552,6.6148,136.18,136.08,93.4392]
[1767801099143,102.8683,136.22,136.08,86.82]
[1767801099144,3.71746389,136.22,136.08,86.82]
[1767801099344,3.71746389,136.22,136.09,86.82]
[1767801099750,3.71746389,136.19,136.09,86.82]
[1767801100145,6.6148,136.18,136.09,86.82]
[1767801100340,3.71746389,136.18,136.09,86.82]
[1767801101549,6.6153,136.17,136.09,86.82]
[1767801102455,3.71746389,136.18,136.09,86.82]
[1767801103653,3.71746389,136.17,136.08,6.6192]
[1767801103960,3.71746389,136.16,136.05,86.82]
[1767801104458,3.71746389,136.16,136.04,189.8191]
[1767801105355,3.71746389,136.16,136.08,6.6195]
[1767801105755,3.71746389,136.16,136.04,86.82]
[1767801105952,3.71746389,136.16,136.06,6.6201]
[1767801106350,3.71746389,136.16,136.04,189.8214]
[1767801107361,3.71746389,136.16,136.09,6.6188]
[1767801107661,3.71746389,136.16,136.05,102.9917]
[1767801108258,3.71746389,136.16,136.08,6.6194]
[1767801108461,3.71746389,136.16,136.06,102.9841]
[1767801108762,3.71746389,136.16,136.04,189.8214]
[1767801108954,3.71746389,136.16,136.04,86.82]
[1767801109155,86.84,136.15,136.04,86.82]
[1767801109365,3.71746389,136.17,136.05,102.9885]
[1767801109557,3.71746389,136.17,136.07,102.9772]
[1767801109862,3.71746389,136.17,136.09,6.619]
[1767801111260,3.71746389,136.17,136.08,102.9707]
[1767801112158,3.71746389,136.17,136.09,6.6186]
[1767801112357,3.71746389,136.17,136.07,102.9718]
[1767801112556,3.71746389,136.17,136.08,102.969]
[1767801113367,3.71746389,136.17,136.07,102.9718]
[1767801113764,3.71746389,136.17,136.08,102.9711]
[1767801113966,3.71746389,136.17,136.06,198.88748319]
[1767801114165,3.71746389,136.21,136.09,102.9601]
[1767801114358,3.71746389,136.21,136.09,112.02458319]
[1767801114861,90.55746389,136.21,136.13,6.6171]
[1767801115559,3.71746389,136.21,136.13,6.6171]
[1767801116057,10.33086389,136.21,136.09,198.86458319]
[1767801116264,3.71746389,136.2,136.09,95.90448319]
[1767801116568,3.71746389,136.2,136.1,102.9552]
[1767801116768,3.71746389,136.2,136.09,198.86368319]
[1767801116967,3.71746389,136.18,136.09,95.90448319]
[1767801117866,90.55746389,136.21,136.1,112.02038319]
[1767801118266,3.71746389,136.21,136.1,112.02038319]
[1767801118470,3.71746389,136.21,136.11,9.06448319]
[1767801118664,3.71746389,136.21,136.12,9.06448319]
[1767801119466,6.6126,136.23,136.15,6.6161]
[1767801119671,10.33006389,136.23,136.15,6.6161]
[1767801120560,3.71746389,136.23,136.16,6.6156]
[1767801121274,97.35664126,136.25,136.14,102.9242]
[1767801121574,97.35664126,136.25,136.13,9.06448319]
[1767801121575,3.90494126,136.22,136.13,9.06448319]
[1767801121760,3.90494126,136.22,136.12,15.91659843]
[1767801121960,3.90494126,136.22,136.1,9.06448319]
[1767801122167,10.64382528,136.21,136.13,6.617]
[1767801122475,4.03022528,136.21,136.1,9.06448319]
[1767801122670,6.614,136.2,136.11,6.618]
[1767801122876,6.614,136.2,136.12,6.8543513]
[1767801122877,4.03022528,136.19,136.12,6.8543513]
[1767801123063,4.03022528,136.19,136.11,13.4723513]
[1767801123266,4.03022528,136.19,136.12,6.8543513]
[1767801123667,86.82,136.21,136.12,13.4717513]
[1767801123871,90.85022528,136.21,136.12,6.8543513]
[1767801124463,97.46352528,136.21,136.13,6.8543513]
[1767801124679,4.03022528,136.2,136.13,6.8543513]
[1767801125072,4.03022528,136.23,136.13,6.8543513]
[1767801125277,4.03022528,136.22,136.13,6.8543513]
[1767801126479,4.03022528,136.22,136.13,13.4711513]
[1767801126677,4.03022528,136.25,136.15,6.8543513]
[1767801126880,4.03022528,136.24,136.14,6.8543513]
[1767801127067,4.03022528,136.23,136.13,6.8543513]
[1767801128583,4.03022528,136.21,136.13,6.8543513]
[1767801130782,4.03022528,136.21,136.14,6.8543513]
[1767801131681,4.03022528,136.21,136.13,6.8543513]
[1767801132682,4.03022528,136.19,136.1,3.64154205]
[1767801132982,90.85022528,136.19,136.1,3.64154205]
[1767801133178,90.85022528,136.19,136.1,12.78643312]
[1767801133374,90.85022528,136.19,136.1,3.64154205]
[1767801134778,4.03022528,136.19,136.1,3.64154205]
[1767801136281,90.85022528,136.19,136.1,3.64154205]
[1767801136682,90.85022528,136.19,136.1,12.78643312]
[1767801136986,90.85022528,136.19,136.11,3.64154205]
[1767801137684,4.03022528,136.19,136.11,3.64154205]
[1767801140198,4.03022528,136.18,136.11,3.64154205]
[1767801140894,4.03022528,136.18,136.11,10.25944205]
[1767801142498,4.03022528,136.2,136.12,10.25904205]
[1767801142703,5.79031023,136.19,136.13,3.64154205]
[1767801144008,1.76008495,136.17,136.11,3.64154205]
[1767801145399,5.79031023,136.19,136.12,3.64154205]
[1767801146610,12.40321023,136.22,136.13,3.64154205]
[1767801146904,4.03022528,136.21,136.13,3.64154205]
[1767801147309,1.76008495,136.2,136.13,3.64154205]
[1767801147508,4.03022528,136.19,136.12,3.64154205]
[1767801147806,1.76008495,136.2,136.13,3.64154205]
[1767801148004,6.6126,136.23,136.13,3.64154205]
[1767801148005,1.76008495,136.22,136.13,3.64154205]
[1767801148511,90.85022528,136.23,136.15,10.25754205]
[1767801148808,1.76008495,136.22,136.15,3.64154205]
[1767801149212,5.79031023,136.22,136.15,3.64154205]
[1767801149807,4.03022528,136.19,136.11,3.64154205]
[1767801150003,1.76008495,136.21,136.12,3.64154205]
[1767801151105,4.03022528,136.22,136.12,3.64154205]
[1767801151705,4.03022528,136.22,136.15,3.68895076]
[1767801152614,4.03022528,136.22,136.15,10.30505076]
[1767801153411,10.60590059,136.23,136.16,3.68895076]
[1767801153612,12.36598554,136.23,136.16,3.68895076]
[1767801154313,1.76008495,136.19,136.13,3.68895076]
[1767801155510,3.99360059,136.18,136.11,3.68895076]
[1767801155715,1.76008495,136.17,136.11,3.68895076]
[1767801157708,12.36888554,136.17,136.11,3.68895076]
[1767801158013,12.36888554,136.17,136.08,90.50895076]
[1767801158215,1.76008495,136.15,136.08,90.50895076]
[1767801158510,12.36988554,136.15,136.08,3.68895076]
[1767801159714,88.58008495,136.16,136.08,3.68895076]
[1767801159914,92.57368554,136.16,136.08,3.68895076]
[1767801160912,1.76008495,136.16,136.08,3.68895076]
[1767801161117,8.37578495,136.16,136.09,3.68895076]
[1767801161314,6.6157,136.16,136.09,3.68895076]
[1767801161514,102.8783,136.21,136.05,10.90497602]
[1767801161515,99.18798554,136.19,136.11,3.68895076]
[1767801162415,10.60840059,136.18,136.11,3.68895076]
[1767801162621,1.76008495,136.17,136.11,3.68895076]
[1767801163306,3.99360059,136.18,136.11,3.68895076]
[1767801163514,1.76008495,136.17,136.11,3.68895076]
[1767801168916,1.76008495,136.15,136.08,3.68895076]
[1767801169817,3.99360059,136.14,136.08,3.68895076]
[1767801170923,3.99360059,136.12,136.05,12.83384183]
[1767801171125,5.75368554,136.11,136.04,9.14489107]
[1767801171430,102.9226,136.15,136.02,9.14489107]
[1767801171431,5.75368554,136.09,136.02,9.14489107]
[1767801171726,5.75368554,136.09,136.01,12.83384183]
[1767801171930,12.37298554,136.09,136.01,3.68895076]
[1767801172124,5.75368554,136.09,136.01,3.68895076]
[1767801173422,12.37288554,136.09,136.01,3.68895076]
[1767801173621,5.75368554,136.09,136.01,3.68895076]
[1767801174332,3.99360059,136.1,136.02,3.68895076]
[1767801174532,3.99360059,136.08,135.99,3.68895076]
[1767801175226,1.76008495,136.09,136.01,3.68895076]
[1767801175431,5.75368554,136.09,136.01,3.68895076]
[1767801176129,12.37288554,136.09,136.01,3.68895076]
[1767801177128,3.99360059,136.08,136.01,3.68895076]
[1767801180625,1.76008495,136.07,136.01,3.68895076]
[1767801181234,3.99360059,136.08,136.01,3.68895076]
[1767801182026,3.99360059,136.08,136.01,10.31175076]
[1767801182530,3.99360059,136.08,136.01,3.68895076]
[1767801183235,1.76008495,136.07,136.01,3.68895076]
[1767801183635,3.99360059,136.08,136.01,3.68895076]
[1767801183833,3.99360059,136.08,136.01,10.31155076]
[1767801189041,86.88,136.09,136.02,10.63690434]
[1767801189333,86.88,136.09,136.03,4.01450434]
[1767801189533,90.67489656,136.09,136.03,4.01450434]
[1767801190836,3.79489656,136.09,136.03,4.01450434]
[1767801191036,90.67489656,136.11,136.04,4.01450434]
[1767801191340,116.1278,136.18,136.05,4.01450434]
[1767801191341,5.55498151,136.14,136.05,4.01450434]
[1767801191532,3.79489656,136.14,136.07,4.01450434]
[1767801191737,3.79489656,136.13,136.06,10.63480434]
[1767801191932,5.55498151,136.13,136.06,10.63480434]
[1767801192133,99.05138151,136.15,136.07,4.01450434]
[1767801192335,5.55498151,136.15,136.07,6.6199]
[1767801192531,5.55498151,136.15,136.08,4.01450434]
[1767801193339,3.79489656,136.14,136.08,4.01450434]
[1767801196842,10.41169656,136.14,136.08,4.01450434]
[1767801197243,3.79489656,136.14,136.08,4.01450434]
[1767801197839,92.43498151,136.16,136.08,4.01450434]
[1767801198032,5.55498151,136.16,136.09,4.01450434]
[1767801198237,92.43498151,136.16,136.09,4.01450434]
[1767801199547,99.05058151,136.16,136.09,4.01450434]
[1767801199849,3.79489656,136.15,136.07,4.01450434]
[1767801200848,6.6167,136.14,136.07,4.01450434]
[1767801201045,8.37678495,136.14,136.07,4.01450434]
[1767801201342,10.41209656,136.13,136.05,17.4536393]
[1767801201543,3.79489656,136.12,136.05,10.63540434]
[1767801202140,3.79489656,136.12,136.06,4.01450434]
[1767801202342,10.41249656,136.12,136.06,4.01450434]
[1767801202548,3.79489656,136.12,136.06,4.01450434]
[1767801203548,3.79489656,136.12,136.04,17.4541393]
[1767801203750,3.79489656,136.12,136.05,4.01450434]
[1767801205349,3.79489656,136.12,136.06,4.01450434]
[1767801205642,3.79489656,136.14,136.06,4.01450434]
[1767801205847,90.65489656,136.16,136.08,4.01450434]
[1767801206051,3.79489656,136.15,136.08,4.01450434]
[1767801207554,10.41109656,136.15,136.08,4.01450434]
[1767801214363,86.86,136.16,136.09,3.95502677]
[1767801214668,3.81069165,136.17,136.09,3.95502677]
[1767801214867,3.81069165,136.16,136.09,3.95502677]
[1767801215067,3.81069165,136.15,136.09,3.95502677]
[1767801215264,3.81069165,136.15,136.07,3.95502677]
[1767801215855,10.42789165,136.13,136.07,3.95502677]
[1767801216266,10.42789165,136.13,136.05,3.95502677]
[1767801216765,3.81069165,136.12,136.03,10.77326173]
[1767801216954,3.81069165,136.1,136.03,3.95502677]
[1767801217567,10.42929165,136.1,136.03,3.95502677]
[1767801218660,3.81069165,136.09,136.03,3.95502677]
[1767801219957,10.42979165,136.09,136.03,3.95502677]
[1767801220673,3.81069165,136.09,136.03,3.95502677]
[1767801222073,6.6184,136.11,136.03,3.95502677]
[1767801222274,3.81069165,136.11,136.03,10.57692677]
[1767801222571,100.04062409,136.13,136.04,3.95502677]
[1767801222963,90.67069165,136.13,136.06,3.95502677]
[1767801223270,3.81069165,136.13,136.06,3.95502677]
[1767801225770,3.81069165,136.12,136.06,3.95502677]
[1767801227971,3.81069165,136.12,136.04,10.77326173]
[1767801228669,3.81069165,136.12,136.04,17.39466173]
[1767801228867,6.56312409,136.09,136.03,6.81823496]
[1767801229060,6.56312409,136.09,136.01,10.77326173]
[1767801229667,6.56312409,136.09,136.01,17.39586173]
[1767801229866,3.81069165,136.09,136.02,3.95502677]
[1767801230172,6.56312409,136.08,136.01,6.81823496]
[1767801230777,6.56312409,136.08,136.01,13.44113496]
[1767801231575,3.81069165,136.08,136.01,17.39616173]
[1767801231875,3.81069165,136.08,136.02,6.81823496]
[1767801232367,3.81069165,136.08,136.02,17.39566173]
[1767801234376,86.86,136.1,136.04,3.95502677]
[1767801235476,90.67069165,136.1,136.04,3.95502677]
[1767801235970,6.56312409,136.13,136.05,3.95502677]
[1767801236169,3.81069165,136.13,136.06,3.95502677]
[1767801236769,3.81069165,136.13,136.06,10.77326173]
[1767801237276,3.81069165,136.13,136.06,17.39366173]
[1767801238072,6.56312409,136.16,136.08,3.95502677]
[1767801238277,3.81069165,136.16,136.08,3.95502677]
[1767801238484,3.81069165,136.16,136.09,6.81823496]
[1767801238678,3.81069165,136.16,136.09,3.95502677]
[1767801239181,3.81069165,136.15,136.08,6.86137593]
[1767801240272,3.81069165,136.15,136.08,10.8164027]
[1767801240570,3.81069165,136.15,136.08,17.4358027]
[1767801241471,3.96739787,136.13,136.07,6.86137593]
[1767801241879,3.96739787,136.13,136.06,6.86137593]
[1767801242980,3.96739787,136.13,136.06,10.66576487]
[1767801244083,3.96739787,136.13,136.06,17.28616487]
[1767801245184,3.96739787,136.13,136.07,6.62]
[1767801247169,3.96739787,136.13,136.06,10.66576487]
[1767801249481,3.96739787,136.13,136.07,3.80438894]
[1767801249671,3.65359976,136.15,136.07,3.80438894]
[1767801250073,6.6167,136.14,136.07,3.80438894]
[1767801251388,10.27029976,136.14,136.07,3.80438894]
[1767801251592,6.6172,136.13,136.07,3.80438894]
[1767801252086,10.27079976,136.13,136.06,6.86137593]
[1767801252285,3.65359976,136.12,136.06,6.86137593]
[1767801252487,3.65359976,136.12,136.05,10.66576487]
[1767801253590,13.0228322,136.14,136.06,3.80438894]
[1767801253982,13.0228322,136.14,136.06,10.66576487]
[1767801254189,3.65359976,136.14,136.07,3.80438894]
[1767801255397,3.65359976,136.14,136.07,10.42418894]